fUST/lending_fUST_20250212
["ID","MTS","AMOUNT","RATE_DAILY","PERIOD"]
[352821830,1739346666781,-1411.88,0.0001487,2]
[352821831,1739346666791,-1747.57,0.00014871,2]
[352821832,1739346666800,-1761.39,0.00014871,2]
[352821833,1739346666809,-862.21,0.00014871,2]
[352821834,1739346666819,-2793.37,0.00014871,2]
[352821835,1739346666828,-500.0,0.00014871,2]
[352821836,1739346666837,-2058.82,0.00014871,2]
[352821837,1739346666851,-1261.61,0.00014871,2]
[352821838,1739346666861,-5987.46,0.00014871,2]
[352821839,1739346666870,-1352.21,0.00014871,2]
[352821840,1739346666880,-757.32,0.00014871,2]
[352821841,1739346666890,-500.0,0.00014871,2]
[352821842,1739346666900,-507.9,0.00014872,2]
[352821843,1739346666909,-546.89,0.00014872,2]
[352821844,1739346666919,-1819.96,0.00014872,2]
[352821845,1739346666930,-18658.31,0.00014872,2]
[352821846,1739346666940,-645.49,0.00014872,2]
[352821847,1739346666950,-2310.06,0.00014872,2]
[352821848,1739346666960,-514.52,0.00014872,2]
[352821849,1739346666969,-151.0,0.00014873,2]
[352821850,1739346666979,-8011.56,0.00014873,2]
[352821851,1739346666989,-583.62465305,0.00014873,2]
[352821852,1739346666999,-184.05,0.00014874,2]
[352821853,1739346667008,-500.0,0.00014889,2]
[352821854,1739346667019,-150.0,0.00014965,2]
[352821855,1739346667029,-1635.46,0.00015,2]
[352821856,1739346667038,-300.0,0.00015,5]
[352821857,1739346667048,-7014.95754033,0.00015,2]
[352821858,1739346667057,-1411.88,0.00015007,2]
[352821859,1739346667066,-1747.57,0.00015008,2]
[352821860,1739346667076,-1761.39,0.00015008,2]
[352821861,1739346667086,-862.21,0.00015008,2]
[352821862,1739346667096,-2793.37,0.00015008,2]
[352821863,1739346667105,-629.21,0.00015008,2]
[352821864,1739346667115,-2058.82,0.00015008,2]
[352821865,1739346667125,-1261.61,0.00015008,2]
[352821866,1739346667134,-5987.46,0.00015008,2]
[352821867,1739346667143,-1352.21,0.00015008,2]
[352821868,1739346667153,-757.32,0.00015008,2]
[352821869,1739346667162,-507.9,0.00015009,2]
[352821870,1739346667171,-546.89,0.00015009,2]
[352821871,1739346667181,-1819.96,0.00015009,2]
[352821872,1739346667190,-18658.31,0.00015009,2]
[352821873,1739346667200,-645.49,0.00015009,2]
[352821874,1739346667210,-2310.06,0.00015009,2]
[352821875,1739346667220,-514.52,0.00015009,2]
[352821876,1739346667229,-151.0,0.00015009,2]
[352821877,1739346667238,-151.0,0.0001501,2]
[352821878,1739346667247,-168.207329,0.0001501,2]
[352821879,1739346667257,-343.157905,0.0001501,2]
[352821880,1739346667266,-343.157905,0.0001501,2]
[352821881,1739346667275,-168.207329,0.0001501,2]
[352821882,1739346667284,-8011.56,0.0001501,2]
[352821883,1739346667295,-166.0,0.00015068,2]
[352821884,1739346667304,-303.99661224,0.0001512,2]
[352821885,1739346667314,-2003.72071404,0.0001512,2]
[352821886,1739346667323,-1411.88,0.00015144,2]
[352821887,1739346667332,-1747.57,0.00015145,2]
[352821888,1739346667342,-1761.39,0.00015145,2]
[352821889,1739346667351,-862.21,0.00015145,2]
[352821890,1739346667361,-2793.37,0.00015145,2]
[352821891,1739346667370,-2058.82,0.00015145,2]
[352821892,1739346667381,-1261.61,0.00015145,2]
[352821893,1739346667391,-5987.46,0.00015145,2]
[352821894,1739346667401,-1352.21,0.00015145,2]
[352821895,1739346667411,-757.32,0.00015145,2]
[352821896,1739346667420,-507.9,0.00015146,2]
[352821897,1739346667430,-546.89,0.00015146,2]
[352821898,1739346667439,-1819.96,0.00015146,2]
[352821899,1739346667449,-18658.31,0.00015146,2]
[352821900,1739346667459,-645.49,0.00015146,2]
[352821901,1739346667468,-2310.06,0.00015146,2]
[352821902,1739346667478,-514.52,0.00015146,2]
[352821903,1739346667488,-8011.56,0.00015147,2]
[352821904,1739346667498,-2642.0190944,0.00015199,2]
[352821905,1739346667508,-360.107,0.00015248,2]
[352821906,1739346667517,-1411.9,0.00015281,2]
[352821907,1739346667527,-1747.62783138,0.00015282,2]
[352821908,1739346667538,-1761.48,0.00015282,2]
[352821909,1739346667548,-862.23976183,0.00015282,2]
[352821910,1739346667557,-2793.59,0.00015282,2]
[352821911,1739346667567,-2059.04,0.00015282,2]
[352821912,1739346667576,-1261.8,0.00015282,2]
[352821913,1739346667586,-5987.68,0.00015282,2]
[352821914,1739346667596,-1352.27,0.00015282,2]
[352821915,1739346667606,-757.49633535,0.00015282,2]
[352821916,1739346667616,-507.94803121,0.00015283,2]
[352821917,1739346667631,-547.11951026,0.00015283,2]
[352821918,1739346667642,-1820.04,0.00015283,2]
[352821919,1739346667653,-334.59107,0.00015283,2]
[352821920,1739346667663,-334.59107,0.00015283,2]
[352821921,1739346667673,-151.427599,0.00015283,2]
[352821922,1739346667684,-151.427599,0.00015283,2]
[352821923,1739346667694,-264.226591,0.00015283,2]
[352821924,1739346667704,-264.226591,0.00015283,2]
[352821925,1739346667714,-18658.52989382,0.00015283,2]
[352821926,1739346667724,-645.67842756,0.00015283,2]
[352821927,1739346667733,-2310.12022366,0.00015283,2]
[352821928,1739346667743,-514.67,0.00015283,2]
[352821929,1739346667752,-8011.6418071,0.00015284,2]
[352821930,1739346667847,-1000.0,0.00015437,2]
[352821931,1739346667857,-472.47856277,0.00015535,2]
[352821932,1739346667866,-500.0,0.00015623,2]
[352821933,1739346667876,-152.8351,0.00015625,2]
[352821934,1739346667886,-2642.0190944,0.0001564,2]
[352821935,1739346667897,-157.0,0.00015666,2]
[352821936,1739346667907,-157.0,0.00015666,2]
[352821937,1739346667921,-157.0,0.00015666,2]
[352821938,1739346667933,-157.0,0.00015666,2]
[352821939,1739346667944,-157.0,0.00015666,2]
[352821940,1739346667954,-157.0,0.00015666,2]
[352821941,1739346667963,-157.0,0.00015666,2]
[352821942,1739346667972,-157.0,0.00015666,2]
[352821943,1739346667981,-157.0,0.00015666,2]
[352821944,1739346667991,-157.0,0.00015666,2]
[352821945,1739346668000,-157.0,0.00015666,2]
[352821946,1739346668009,-157.0,0.00015666,2]
[352821947,1739346668019,-157.0,0.00015666,2]
[352821948,1739346668028,-157.0,0.00015666,2]
[352821949,1739346668037,-157.0,0.00015666,2]
[352821950,1739346668046,-157.0,0.00015666,2]
[352821951,1739346668055,-170.19,0.00015666,2]
[352821952,1739346668064,-151.0,0.00015685,2]
[352821953,1739346668074,-151.0,0.00015685,2]
[352821954,1739346668083,-173.694777,0.00015685,2]
[352821955,1739346668093,-173.694777,0.00015685,2]
[352821956,1739346668102,-265.403999,0.00015685,2]
[352821957,1739346668111,-265.403999,0.00015685,2]
[352821958,1739346668120,-500.0,0.00015723,2]
[352821959,1739346668131,-151.0,0.0001579,2]
[352821960,1739346668139,-500.0,0.0001582,2]
[352821961,1739346668148,-500.0,0.00015823,2]
[352821962,1739346668158,-500.89810643,0.00015835,2]
[352821963,1739346668167,-500.85685246,0.00015835,2]
[352821964,1739346668176,-1500.0,0.00015835,2]
[352821965,1739346668185,-500.0,0.00015873,2]
[352821966,1739346668194,-500.0,0.00015873,2]
[352821967,1739346668203,-500.0,0.00015873,2]
[352821968,1739346668212,-151.0,0.00015889,2]
[352821969,1739346668221,-168.207329,0.00015889,2]
[352821970,1739346668232,-343.157905,0.00015889,2]
[352821971,1739346668242,-168.207329,0.00015889,2]
[352821972,1739346668254,-343.157905,0.00015889,2]
[352821973,1739346668263,-151.0,0.00015889,2]
[352821974,1739346668272,-173.694777,0.00015889,2]
[352821975,1739346668282,-173.694777,0.00015889,2]
[352821976,1739346668291,-265.403999,0.00015889,2]
[352821977,1739346668301,-265.403999,0.00015889,2]
[352821978,1739346668310,-41888.598312,0.0001589,7]
[352821979,1739346668457,-700281.70114471,0.0001589,7]
[352821980,1739346671105,-500.0,0.00012131,2]
[352821981,1739346671115,-461.47,0.00012131,2]
[352821982,1739346671170,-38.53,0.00012131,2]
[352821983,1739346671179,-500.0,0.00012271,2]
[352821984,1739346671190,-681.87,0.00013913,2]
[352821985,1739346671199,-500.0,0.00013913,2]
[352821986,1739346671210,-681.87,0.0001405,2]
[352821987,1739346671221,-500.0,0.0001405,2]
[352821988,1739346671233,-681.87,0.00014187,2]
[352821989,1739346671243,-500.0,0.00014187,2]
[352821990,1739346671253,-681.87,0.00014324,2]
[352821991,1739346671262,-500.0,0.00014324,2]
[352821992,1739346671271,-681.87,0.00014461,2]
[352821993,1739346671281,-500.0,0.00014461,2]
[352821994,1739346671290,-603.94683546,0.00014598,2]
[352822013,1739347641137,-450.0,0.00010578,2]
[352822014,1739347641162,-400.0,0.00010685,2]
[352822015,1739347641187,-300.0,0.00010958,2]
[352822016,1739347641209,-280.93,0.00010959,2]
[352822017,1739347641231,-677.27,0.00010959,2]
[352822018,1739347641253,-564.39,0.00010959,2]
[352822019,1739347641275,-470.33,0.00010959,2]
[352822020,1739347641298,-391.94,0.00010959,2]
[352822021,1739347641321,-326.62,0.00010959,2]
[352822022,1739347641344,-272.18,0.00010959,2]
[352822023,1739347641366,-226.82,0.00010959,2]
[352822024,1739347641389,-189.01,0.00010959,2]
[352822025,1739347641411,-157.51,0.00010959,2]
[352822026,1739347641431,-787.58,0.00010959,2]
[352822027,1739347641452,-180.81895303,0.000112,2]
[352822028,1739347649115,-8.18104697,0.000112,2]
[352822029,1739347649148,-158.26009058,0.00012029,2]
[352822030,1739347649178,-420.0,0.00012042,2]
[352822031,1739347649201,-7438.69753278,0.00012104,2]
[352822032,1739347649225,-500.0,0.00012128,2]
[352822033,1739347649249,-500.0,0.00012128,2]
[352822034,1739347649274,-500.0,0.00012128,2]
[352822035,1739347649297,-500.0,0.00012128,2]
[352822036,1739347649322,-500.0,0.00012128,2]
[352822037,1739347649345,-500.0,0.00012128,2]
[352822038,1739347649370,-500.0,0.00012128,2]
[352822039,1739347649394,-500.0,0.00012128,2]
[352822040,1739347649416,-500.0,0.00012128,2]
[352822041,1739347649440,-500.0,0.00012128,2]
[352822042,1739347649464,-500.0,0.00012128,2]
[352822043,1739347649487,-500.0,0.00012128,2]
[352822044,1739347649509,-500.0,0.00012129,2]
[352822045,1739347649531,-500.0,0.00012129,2]
[352822046,1739347649553,-500.0,0.00012129,2]
[352822047,1739347649577,-129.97630603,0.00012129,2]
[352822048,1739347650091,-370.02369397,0.00012129,2]
[352822049,1739347650113,-79.97630603,0.00012129,2]
[352822050,1739347758228,-2273.56382621,0.00012006,2]
[352822051,1739347758255,-300.0,0.00012127,2]
[352822052,1739347758279,-500.0,0.00012128,2]
[352822053,1739347758303,-492.97114112,0.00012128,2]
[352822054,1739347758326,-505.23442972,0.00012128,2]
[352822055,1739347758350,-500.0,0.00012128,2]
[352822056,1739347758373,-500.0,0.00012128,2]
[352822057,1739347758398,-500.0,0.00012128,2]
[352822058,1739347758422,-500.0,0.00012128,2]
[352822059,1739347758446,-500.0,0.00012128,2]
[352822060,1739347758471,-776.33,0.00012128,2]
[352822061,1739347758496,-325.28598927,0.00012128,2]
[352822062,1739347759185,-174.71401073,0.00012128,2]
[352822063,1739347759211,-500.0,0.00012128,2]
[352822064,1739347759240,-92.93318007,0.00012128,2]
[352822084,1739347832900,-157.946614,0.00011233,2]
[352822085,1739347832910,-157.946614,0.00011242,2]
[352822086,1739347832919,-157.946614,0.00011251,2]
[352822087,1739347832928,-157.946614,0.00011261,2]
[352822088,1739347832937,-157.946614,0.0001127,2]
[352822089,1739347832947,-407.06681993,0.00012128,2]
[352822090,1739347832957,-500.0,0.00012128,2]
[352822091,1739347832966,-398.34893384,0.00012128,2]
[352822092,1739347832975,-442.55550076,0.00012128,2]
[352822093,1739347832985,-500.0,0.00012128,2]
[352822094,1739347832995,-500.0,0.00012128,2]
[352822095,1739347833004,-500.0,0.00012128,2]
[352822096,1739347833014,-500.0,0.00012128,2]
[352822097,1739347833023,-500.0,0.00012128,2]
[352822098,1739347833033,-500.0,0.00012128,2]
[352822099,1739347833042,-1052.12,0.00012128,2]
[352822100,1739347833051,-500.0,0.00012128,2]
[352822101,1739347833060,-500.0,0.00012128,2]
[352822102,1739347833070,-623.5,0.00012128,2]
[352822103,1739347833079,-500.0,0.00012128,2]
[352822104,1739347833088,-1165.56,0.00012128,2]
[352822105,1739347833097,-500.0,0.00012128,2]
[352822106,1739347833107,-500.0,0.00012128,2]
[352822108,1739347833116,-500.0,0.00012128,2]
[352822110,1739347833125,-500.0,0.00012128,2]
[352822112,1739347833135,-500.0,0.00012128,2]
[352822114,1739347833144,-500.0,0.00012128,2]
[352822116,1739347833154,-500.0,0.00012128,2]
[352822118,1739347833163,-500.0,0.00012128,2]
[352822120,1739347833173,-500.0,0.00012128,2]
[352822122,1739347833182,-500.0,0.00012128,2]
[352822123,1739347833192,-500.0,0.00012128,2]
[352822124,1739347833201,-500.0,0.00012128,2]
[352822125,1739347833214,-500.0,0.00012128,2]
[352822126,1739347833224,-500.0,0.00012128,2]
[352822127,1739347833233,-500.0,0.00012128,2]
[352822128,1739347833244,-500.0,0.00012128,2]
[352822129,1739347833256,-500.0,0.00012128,2]
[352822130,1739347833266,-500.0,0.00012128,2]
[352822131,1739347833276,-500.0,0.00012128,2]
[352822132,1739347833286,-500.0,0.00012128,2]
[352822133,1739347833296,-500.0,0.00012128,2]
[352822134,1739347833305,-500.0,0.00012128,2]
[352822135,1739347833314,-500.0,0.00012128,2]
[352822136,1739347833324,-500.0,0.00012128,2]
[352822137,1739347833334,-500.0,0.00012128,2]
[352822138,1739347833344,-500.0,0.00012128,2]
[352822139,1739347833354,-420.02369397,0.00012129,2]
[352822140,1739347833363,-500.0,0.00012129,2]
[352822141,1739347833373,-500.0,0.00012129,2]
[352822142,1739347833382,-500.0,0.00012129,2]
[352822143,1739347833392,-500.0,0.00012129,2]
[352822144,1739347833402,-500.0,0.00012129,2]
[352822145,1739347833412,-500.0,0.00012129,2]
[352822146,1739347833422,-500.0,0.00012129,2]
[352822147,1739347833432,-500.0,0.00012129,2]
[352822148,1739347833441,-500.0,0.00012129,2]
[352822149,1739347833451,-500.0,0.00012129,2]
[352822150,1739347833462,-500.0,0.00012129,2]
[352822151,1739347833472,-500.0,0.00012129,2]
[352822152,1739347833482,-500.0,0.00012129,2]
[352822153,1739347833491,-500.0,0.00012129,2]
[352822154,1739347833500,-500.0,0.00012129,2]
[352822155,1739347833510,-500.0,0.00012129,2]
[352822156,1739347833520,-505.49781623,0.00012129,2]
[352822157,1739347833529,-500.0,0.00012129,2]
[352822158,1739347833539,-500.0,0.00012129,2]
[352822159,1739347833548,-500.0,0.00012129,2]
[352822160,1739347833558,-500.0,0.00012129,2]
[352822161,1739347833567,-500.0,0.00012129,2]
[352822162,1739347833577,-500.0,0.00012129,2]
[352822163,1739347833586,-500.0,0.00012129,2]
[352822164,1739347833596,-500.0,0.00012129,2]
[352822165,1739347833606,-500.0,0.00012129,2]
[352822166,1739347833615,-500.0,0.00012129,2]
[352822167,1739347833625,-500.0,0.00012129,2]
[352822168,1739347833634,-500.0,0.00012129,2]
[352822169,1739347833644,-196.4427872,0.00012129,2]
[352822170,1739347833654,-500.0,0.00012129,2]
[352822171,1739347833663,-500.0,0.00012129,2]
[352822172,1739347833673,-500.0,0.00012129,2]
[352822173,1739347833682,-500.0,0.00012129,2]
[352822174,1739347833692,-500.0,0.00012129,2]
[352822175,1739347833701,-496.97806786,0.00012129,2]
[352822176,1739347833712,-500.0,0.00012129,2]
[352822177,1739347833721,-500.0,0.00012129,2]
[352822178,1739347833730,-500.0,0.00012129,2]
[352822179,1739347833740,-500.0,0.00012129,2]
[352822180,1739347833749,-500.0,0.00012129,2]
[352822181,1739347833758,-500.0,0.00012129,2]
[352822182,1739347833768,-500.0,0.00012129,2]
[352822183,1739347833777,-500.0,0.00012129,2]
[352822184,1739347833787,-500.0,0.00012129,2]
[352822185,1739347833796,-500.0,0.00012129,2]
[352822186,1739347833805,-500.0,0.00012129,2]
[352822187,1739347833814,-500.0,0.00012129,2]
[352822188,1739347833824,-511.19324518,0.00012129,2]
[352822189,1739347833833,-500.0,0.00012129,2]
[352822190,1739347833843,-500.0,0.00012129,2]
[352822191,1739347833852,-500.0,0.00012129,2]
[352822192,1739347833862,-500.0,0.00012129,2]
[352822193,1739347833872,-500.0,0.00012129,2]
[352822194,1739347833882,-500.0,0.00012129,2]
[352822195,1739347833892,-500.0,0.00012129,2]
[352822196,1739347833903,-500.0,0.00012129,2]
[352822197,1739347833912,-500.0,0.00012129,2]
[352822198,1739347833922,-500.0,0.00012129,2]
[352822199,1739347833932,-500.0,0.00012129,2]
[352822200,1739347833941,-500.0,0.00012129,2]
[352822201,1739347833951,-500.0,0.00012129,2]
[352822202,1739347833963,-500.0,0.00012129,2]
[352822203,1739347833973,-500.0,0.00012129,2]
[352822204,1739347833983,-500.0,0.00012129,2]
[352822205,1739347833993,-476.39169108,0.00012129,2]
[352822206,1739347834164,-500.0,0.00012129,2]
[352822207,1739347834174,-500.0,0.00012129,2]
[352822208,1739347834184,-500.0,0.00012129,2]
[352822209,1739347834193,-500.0,0.00012129,2]
[352822210,1739347834203,-500.0,0.00012129,2]
[352822211,1739347834213,-506.93679128,0.00012129,2]
[352822212,1739347834223,-500.0,0.00012129,2]
[352822213,1739347834232,-500.0,0.00012129,2]
[352822214,1739347834242,-500.0,0.00012129,2]
[352822215,1739347834255,-500.0,0.00012129,2]
[352822216,1739347834265,-500.0,0.00012129,2]
[352822217,1739347834275,-500.0,0.00012129,2]
[352822218,1739347834284,-500.0,0.00012129,2]
[352822219,1739347834294,-500.0,0.00012129,2]
[352822220,1739347834303,-500.0,0.00012129,2]
[352822221,1739347834313,-500.0,0.00012129,2]
[352822222,1739347834323,-500.0,0.00012129,2]
[352822223,1739347834332,-500.0,0.00012129,2]
[352822224,1739347834342,-500.0,0.00012129,2]
[352822225,1739347834351,-500.0,0.00012129,2]
[352822226,1739347834361,-500.0,0.00012129,2]
[352822227,1739347834371,-500.0,0.00012129,2]
[352822228,1739347834381,-500.0,0.00012129,2]
[352822229,1739347834390,-500.0,0.00012129,2]
[352822230,1739347834400,-500.0,0.00012129,2]
[352822231,1739347834410,-260.65027256,0.00012129,2]
[352822232,1739347834419,-500.0,0.00012129,2]
[352822233,1739347834429,-500.0,0.00012129,2]
[352822234,1739347834439,-500.78560963,0.00012129,2]
[352822235,1739347834449,-500.0,0.00012129,2]
[352822236,1739347834461,-500.0,0.00012129,2]
[352822237,1739347834470,-500.0,0.00012129,2]
[352822238,1739347834480,-500.0,0.00012129,2]
[352822239,1739347834489,-500.0,0.00012129,2]
[352822240,1739347834499,-500.0,0.00012129,2]
[352822241,1739347834508,-500.0,0.00012129,2]
[352822242,1739347834517,-500.0,0.00012129,2]
[352822243,1739347834527,-500.0,0.00012129,2]
[352822244,1739347834536,-500.0,0.00012129,2]
[352822245,1739347834546,-500.0,0.00012129,2]
[352822246,1739347834556,-500.0,0.00012129,2]
[352822247,1739347834565,-500.0,0.00012129,2]
[352822248,1739347834575,-500.0,0.00012129,2]
[352822249,1739347834584,-435.84550457,0.00012129,2]
[352822250,1739347834594,-500.0,0.00012129,2]
[352822251,1739347834603,-500.0,0.00012129,2]
[352822252,1739347834613,-500.0,0.00012129,2]
[352822253,1739347834623,-500.0,0.00012129,2]
[352822254,1739347834632,-500.0,0.00012129,2]
[352822255,1739347834642,-500.0,0.00012129,2]
[352822256,1739347834652,-500.0,0.00012129,2]
[352822257,1739347834661,-500.0,0.00012129,2]
[352822258,1739347834671,-500.0,0.00012129,2]
[352822259,1739347834680,-500.0,0.00012129,2]
[352822260,1739347834690,-500.0,0.00012129,2]
[352822261,1739347834699,-500.0,0.00012129,2]
[352822262,1739347834710,-500.0,0.00012129,2]
[352822263,1739347834719,-500.0,0.00012129,2]
[352822264,1739347834728,-403.17492009,0.00012129,2]
[352822265,1739347834871,-96.82507991,0.00012129,2]
[352822266,1739347834880,-500.0,0.00012129,2]
[352822267,1739347834890,-407.90149867,0.00012129,2]
[352822268,1739347834900,-500.0,0.00012129,2]
[352822269,1739347834909,-500.0,0.00012129,2]
[352822270,1739347834919,-500.0,0.00012129,2]
[352822271,1739347834929,-500.0,0.00012129,2]
[352822272,1739347834938,-500.0,0.00012129,2]
[352822273,1739347834948,-500.0,0.00012129,2]
[352822274,1739347834957,-500.0,0.00012129,2]
[352822275,1739347834966,-500.0,0.00012129,2]
[352822276,1739347834975,-500.0,0.00012129,2]
[352822277,1739347834985,-500.0,0.00012129,2]
[352822278,1739347834994,-500.0,0.00012129,2]
[352822279,1739347835006,-500.0,0.00012129,2]
[352822280,1739347835015,-500.0,0.00012129,2]
[352822281,1739347835025,-500.0,0.00012129,2]
[352822282,1739347835034,-507.73813683,0.00012129,2]
[352822283,1739347835043,-557.2066367,0.00012129,2]
[352822284,1739347835052,-500.0,0.00012129,2]
[352822285,1739347835061,-500.0,0.00012129,2]
[352822286,1739347835070,-500.0,0.00012129,2]
[352822287,1739347835079,-500.0,0.00012129,2]
[352822288,1739347835089,-500.0,0.00012129,2]
[352822289,1739347835098,-500.0,0.00012129,2]
[352822290,1739347835107,-500.0,0.00012129,2]
[352822291,1739347835118,-500.0,0.00012129,2]
[352822292,1739347835127,-500.0,0.00012129,2]
[352822293,1739347835137,-500.0,0.00012129,2]
[352822294,1739347835147,-500.0,0.00012129,2]
[352822295,1739347835157,-500.0,0.00012129,2]
[352822296,1739347835166,-500.58450848,0.00012129,2]
[352822297,1739347835175,-500.0,0.00012129,2]
[352822298,1739347835184,-500.0,0.00012129,2]
[352822299,1739347835194,-500.0,0.00012129,2]
[352822300,1739347835203,-500.0,0.00012129,2]
[352822301,1739347835214,-500.0,0.00012129,2]
[352822302,1739347835223,-502.09211218,0.00012129,2]
[352822303,1739347835233,-500.0,0.00012129,2]
[352822304,1739347835242,-500.0,0.00012129,2]
[352822305,1739347835251,-500.0,0.00012129,2]
[352822306,1739347835261,-500.0,0.00012129,2]
[352822307,1739347835272,-500.0,0.00012129,2]
[352822308,1739347835282,-500.0,0.00012129,2]
[352822309,1739347835291,-511.68145535,0.00012129,2]
[352822310,1739347835300,-216.950327,0.00012129,2]
[352822311,1739347835310,-500.0,0.00012129,2]
[352822312,1739347835319,-500.0,0.00012129,2]
[352822313,1739347835328,-500.0,0.00012129,2]
[352822314,1739347835338,-541.75,0.00012129,2]
[352822315,1739347835347,-500.0,0.00012129,2]
[352822316,1739347835358,-500.0,0.00012129,2]
[352822317,1739347835367,-500.0,0.00012129,2]
[352822318,1739347835376,-848.7,0.00012129,2]
[352822319,1739347835386,-500.0,0.00012129,2]
[352822320,1739347835395,-500.0,0.00012129,2]
[352822321,1739347835404,-500.0,0.00012129,2]
[352822322,1739347835413,-500.0,0.00012129,2]
[352822323,1739347835423,-500.0,0.00012129,2]
[352822324,1739347835431,-500.0,0.00012129,2]
[352822325,1739347835441,-500.0,0.00012129,2]
[352822326,1739347835451,-500.0,0.00012129,2]
[352822327,1739347835462,-500.0,0.00012129,2]
[352822328,1739347835471,-500.0,0.00012129,2]
[352822329,1739347835480,-500.0,0.00012129,2]
[352822330,1739347835489,-500.0,0.00012129,2]
[352822331,1739347835498,-500.0,0.00012129,2]
[352822332,1739347835507,-500.0,0.00012129,2]
[352822333,1739347835516,-500.0,0.00012129,2]
[352822334,1739347835525,-500.0,0.00012129,2]
[352822335,1739347835535,-500.0,0.00012129,2]
[352822336,1739347835543,-6626.76,0.00012129,2]
[352822337,1739347835552,-500.0,0.00012129,2]
[352822338,1739347835562,-500.0,0.00012129,2]
[352822339,1739347835572,-500.0,0.00012129,2]
[352822340,1739347835581,-503.65748446,0.00012129,2]
[352822341,1739347835590,-500.0,0.00012129,2]
[352822342,1739347835599,-500.0,0.00012129,2]
[352822343,1739347835608,-500.0,0.00012129,2]
[352822344,1739347835617,-500.0,0.00012129,2]
[352822345,1739347835626,-500.0,0.00012129,2]
[352822346,1739347835635,-500.0,0.00012129,2]
[352822347,1739347835645,-500.0,0.00012129,2]
[352822348,1739347835654,-247.49734324,0.00012129,2]
[352822349,1739347835663,-500.0,0.00012129,2]
[352822350,1739347835672,-500.0,0.00012129,2]
[352822351,1739347835682,-500.0,0.00012129,2]
[352822352,1739347835691,-500.0,0.00012129,2]
[352822353,1739347835700,-500.0,0.00012129,2]
[352822354,1739347835709,-500.0,0.00012129,2]
[352822355,1739347835718,-500.0,0.00012129,2]
[352822356,1739347835728,-500.0,0.00012129,2]
[352822357,1739347835738,-500.0,0.00012129,2]
[352822358,1739347835747,-500.0,0.00012129,2]
[352822359,1739347835756,-500.0,0.00012129,2]
[352822360,1739347835766,-500.0,0.00012129,2]
[352822361,1739347835775,-500.0,0.00012129,2]
[352822362,1739347835784,-500.0,0.00012129,2]
[352822363,1739347835794,-501.61218027,0.00012129,2]
[352822364,1739347835803,-500.0,0.00012129,2]
[352822365,1739347835813,-500.0,0.00012129,2]
[352822366,1739347835822,-500.0,0.00012129,2]
[352822367,1739347835831,-300.57009657,0.00012129,2]
[352822368,1739347835841,-500.0,0.00012129,2]
[352822369,1739347835850,-500.0,0.00012129,2]
[352822370,1739347835860,-500.0,0.00012129,2]
[352822371,1739347835870,-501.13971128,0.00012129,2]
[352822372,1739347835879,-2407.35,0.00012129,2]
[352822373,1739347835888,-500.0,0.00012129,2]
[352822374,1739347835897,-500.0,0.00012129,2]